bitfinex-derivatives/quotes_ETHF0:USTF0_20250327
["timestamp","ask_amount","ask_price","bid_price","bid_amount"]
[1743110874103,6.24637,2013.5,2013.4,0.00745731]
[1743110874309,9.45417,2013.5,2013.4,0.00745731]
[1743110882410,6.24637,2013.5,2013.4,0.00745731]
[1743110882609,9.45417,2013.5,2013.4,0.00745731]
[1743110885920,6.24637,2013.5,2013.4,0.00745731]
[1743110886220,9.45417,2013.5,2013.4,0.00745731]
[1743110896319,6.24637,2013.5,2013.4,0.00745731]
[1743110896515,9.45417,2013.5,2013.4,0.00745731]
[1743110907035,9.45417,2013.5,2013.4,7.31e-06]
[1743110908438,7.36527,2013.5,2013.4,7.31e-06]
[1743110908627,7.36527,2013.5,2013.4,0.71990731]
[1743110908829,8.69147,2013.5,2013.4,0.71990731]
[1743110919441,8.69147,2013.5,2013.4,7.31e-06]
[1743110919643,8.77309994,2013.5,2013.4,7.31e-06]
[1743110919842,9.57024011,2013.5,2013.4,7.31e-06]
[1743110920041,9.57024161,2013.5,2013.4,7.31e-06]
[1743110920240,12.07024161,2013.5,2013.4,7.31e-06]
[1743110920644,18.02224161,2013.5,2013.4,7.31e-06]
[1743110920946,23.77426978,2013.5,2013.4,7.31e-06]
[1743110921142,0.99386,2012.7,2012.6,3.2078]
[1743110921350,0.99386,2012.7,2012.6,3.85272798]
[1743110922543,0.99386,2012.7,2012.6,5.22992798]
[1743110922745,0.99386,2012.7,2012.6,4.585]
[1743110923543,0.99396,2012.5,2012.4,0.72245731]
[1743110923742,4.17396,2012.5,2012.4,0.72245731]
[1743110924744,4.17396,2012.5,2012.4,2.10295731]
[1743110927039,7.38176,2012.5,2012.4,1.38795731]
[1743110928055,0.99411,2012.2,2012.1,1.3701]
[1743110928254,7.38291,2012.2,2012.1,1.3701]
[1743110931257,7.38291,2012.2,2012.1,2.6873]
[1743110931756,4.17511,2012.2,2012.1,2.6873]
[1743110931943,7.38291,2012.2,2012.1,2.6873]
[1743110932348,4.17511,2012.2,2012.1,2.6873]
[1743110932744,7.38291,2012.2,2012.1,2.6873]
[1743110935057,4.17511,2012.2,2012.1,2.6873]
[1743110935258,7.38291,2012.2,2012.1,2.6873]
[1743110936961,7.38291,2012.2,2012.1,2.0298]
[1743110937354,8.08521,2012.2,2012.1,1.3172]
[1743110937560,0.99421,2012.0,2011.9,0.72755731]
[1743110937759,0.99421,2012.0,2011.9,2.06685731]
[1743110938159,2.36941,2012.0,2011.9,2.06685731]
[1743110939757,2.36941,2012.0,2011.9,0.00745731]
[1743110943672,2.36941,2012.0,2011.9,7.31e-06]
[1743110943867,2.45110868,2012.0,2011.9,7.31e-06]
[1743110944266,2.45110976,2012.0,2011.9,7.31e-06]
[1743110946761,2.36941,2012.0,2011.9,7.31e-06]
[1743110946966,2.45110505,2012.0,2011.9,7.31e-06]
[1743110950667,2.45110998,2012.0,2011.9,7.31e-06]
[1743110953776,5.65890998,2012.0,2011.9,7.31e-06]
[1743110954578,2.45110998,2012.0,2011.9,7.31e-06]
[1743110954878,5.65890998,2012.0,2011.9,7.31e-06]
[1743110960177,11.61090998,2012.0,2011.9,7.31e-06]
[1743110960380,11.61091163,2012.0,2011.9,7.31e-06]
[1743110961178,8.40311163,2012.0,2011.9,7.31e-06]
[1743110961484,11.61091163,2012.0,2011.9,7.31e-06]
[1743110965285,11.61091514,2012.0,2011.9,7.31e-06]
[1743110966285,12.40790406,2012.0,2011.9,7.31e-06]
[1743110966985,12.40790384,2012.0,2011.9,7.31e-06]
[1743110967986,14.90790384,2012.0,2011.9,7.31e-06]
[1743110968185,14.90790486,2012.0,2011.9,7.31e-06]
[1743110968484,0.99431,2011.8,2011.7,1.3592]
[1743110968685,4.25101594,2011.8,2011.7,1.3592]
[1743110969088,6.30901594,2011.8,2011.7,1.3592]
[1743110969587,0.99436,2011.7,2011.6,0.6658]
[1743110969785,5.56516,2011.7,2011.6,0.6658]
[1743110969980,5.56516,2011.7,2011.6,2.0573]
[1743110971089,0.99441,2011.6,2011.5,0.00745731]
[1743110971291,2.35741,2011.6,2011.5,0.00745731]
[1743110971482,2.43912119,2011.6,2011.5,0.00745731]
[1743110973489,2.43912823,2011.6,2011.5,0.00745731]
[1743110973985,2.43912823,2011.6,2011.5,7.31e-06]
[1743110974192,3.10432823,2011.6,2011.5,7.31e-06]
[1743110974491,3.51237437,2011.6,2011.5,7.31e-06]
[1743110974789,9.46437437,2011.6,2011.5,7.31e-06]
[1743110975290,9.46437964,2011.6,2011.5,7.31e-06]
[1743110976691,9.46437946,2011.6,2011.5,7.31e-06]
[1743110977494,12.67217946,2011.6,2011.5,7.31e-06]
[1743110977793,0.99451,2011.4,2011.3,0.666]
[1743110977995,4.16851,2011.4,2011.3,0.666]
[1743110979187,5.54391,2011.4,2011.3,2.0402]
[1743110979800,5.62563578,2011.4,2011.3,2.0402]
[1743110981987,4.24723578,2011.4,2011.3,2.0402]
[1743110982195,4.16551,2011.4,2011.3,2.0402]
[1743110983799,4.24723612,2011.4,2011.3,2.0402]
[1743110984191,5.53561,2011.4,2011.3,2.0402]
[1743110984499,5.6173353,2011.4,2011.3,2.0402]
[1743110984901,5.65351077,2011.4,2011.3,2.0402]
[1743110985996,5.57178535,2011.4,2011.3,2.0402]
[1743110990891,8.77958535,2011.4,2011.3,2.0402]
[1743110992500,5.57178535,2011.4,2011.3,2.0402]
[1743110992702,8.77958535,2011.4,2011.3,2.0402]
[1743110992900,8.77958535,2011.4,2011.3,1.3742]
[1743110993099,8.86130912,2011.4,2011.3,1.3742]
[1743110994702,8.86131362,2011.4,2011.3,1.3742]
[1743110997594,5.65351362,2011.4,2011.3,1.3742]
[1743110997794,8.86131362,2011.4,2011.3,1.3742]
[1743110999808,8.86129689,2011.4,2011.3,1.3742]
[1743111001004,8.86129409,2011.4,2011.3,1.3742]
[1743111001205,8.86129403,2011.4,2011.3,1.3742]
[1743111001406,9.65939951,2011.4,2011.3,1.3742]
[1743111001606,8.86129403,2011.4,2011.3,1.3742]
[1743111002507,8.86129457,2011.4,2011.3,1.3742]
[1743111004609,9.65954306,2011.4,2011.3,1.3742]
[1743111004807,8.86129457,2011.4,2011.3,1.3742]
[1743111005004,9.65954981,2011.4,2011.3,1.3742]
[1743111005805,9.65954985,2011.4,2011.3,1.3742]
[1743111012712,9.65956792,2011.4,2011.3,1.3742]
[1743111014412,9.65956786,2011.4,2011.3,1.3742]
[1743111017411,0.99485,2010.7,2010.6,3.2078]
[1743111017815,1.03102535,2010.7,2010.6,3.2078]
[1743111018113,1.03102535,2010.7,2010.6,3.85406611]
[1743111018515,1.03102535,2010.7,2010.6,0.64626611]
[1743111019220,1.03102535,2010.7,2010.6,1.95476611]
[1743111020714,1.03102535,2010.7,2010.6,2.65196611]
[1743111033215,2.47362535,2010.7,2010.6,2.65196611]
[1743111037518,2.47362535,2010.7,2010.6,2.0057]
[1743111038423,0.99495,2010.5,2010.4,0.00745731]
[1743111038620,4.15895,2010.5,2010.4,0.00745731]
[1743111038819,5.49395,2010.5,2010.4,0.00745731]
[1743111039027,5.53012535,2010.5,2010.4,0.00745731]
[1743111040922,5.61180809,2010.5,2010.4,0.00745731]
[1743111041724,5.61180809,2010.5,2010.4,7.31e-06]
[1743111041920,5.53012535,2010.5,2010.4,7.31e-06]
[1743111042125,5.61180394,2010.5,2010.4,7.31e-06]
[1743111043730,5.61180042,2010.5,2010.4,7.31e-06]
[1743111043932,0.99515,2010.1,2010.0,1.99020731]
[1743111044228,7.36995,2010.1,2010.0,1.99020731]
[1743111044423,10.08635,2010.1,2010.0,1.99020731]
[1743111044733,10.08635,2010.1,2010.0,1.327]
[1743111044932,10.12252535,2010.1,2010.0,1.327]
[1743111046133,10.52132354,2010.1,2010.0,1.327]
[1743111046523,0.99525,2009.9,2009.8,0.00503408]
[1743111047026,2.44862535,2009.9,2009.8,1.39883408]
[1743111048937,2.44862535,2009.9,2009.8,0.00503408]
[1743111055439,2.44862535,2009.9,2009.8,4.08e-06]
[1743111056041,2.53028639,2009.9,2009.8,4.08e-06]
[1743111062529,5.73808639,2009.9,2009.8,4.08e-06]
[1743111062845,0.99535,2009.7,2009.6,1.33420408]
[1743111063043,4.20252535,2009.7,2009.6,1.33420408]
[1743111063441,5.62172535,2009.7,2009.6,1.33420408]
[1743111064340,8.82952535,2009.7,2009.6,1.33420408]
[1743111070043,5.62172535,2009.7,2009.6,1.33420408]
[1743111070348,8.82952535,2009.7,2009.6,1.33420408]
[1743111081361,5.62172535,2009.7,2009.6,1.33420408]
[1743111081556,4.23932535,2009.7,2009.6,1.33420408]
[1743111081761,0.99525,2010.0,2009.6,3.83420408]
[1743111082062,0.99525,2010.0,2009.9,3.2078]
[1743111082851,0.99525,2010.0,2009.9,3.85392961]
[1743111083258,0.9952,2010.0,2009.9,3.85392961]
[1743111084973,0.9952,2010.0,2009.9,5.22662961]
[1743111085370,0.9952,2010.0,2009.9,7.72662961]
[1743111085675,0.9952,2010.0,2009.9,5.22662961]
[1743111086070,0.9952,2010.0,2009.9,4.5805]
[1743111086764,0.9952,2010.0,2009.9,23.2805]
[1743111086965,0.9952,2010.0,2009.9,25.7805]
[1743111087161,0.99496,2010.5,2009.9,31.4416]
[1743111087377,0.99478,2010.9,2010.6,0.9949]
[1743111087563,0.99479,2010.9,2010.8,3.2078]
[1743111088976,0.99473,2011.0,2010.8,3.2078]
[1743111090275,0.99475,2010.9,2010.8,3.2078]
[1743111090466,0.99474,2011.0,2010.8,3.2078]
[1743111092369,2.39534,2011.0,2010.8,3.2078]
[1743111092973,1.4006,2011.0,2010.8,3.2078]
[1743111094781,2.39531,2011.0,2010.8,3.2078]
[1743111096079,0.00745731,2011.1,2010.9,1.3302]
[1743111096282,0.6993,2011.4,2010.9,1.3302]
[1743111096575,1.69381,2011.4,2011.2,3.2078]
[1743111096779,0.99451,2011.4,2011.3,1.4242]
[1743111097180,2.42399,2011.5,2011.3,1.4242]
[1743111097974,2.42399,2011.5,2011.3,2.41875]
[1743111098274,1.4295,2011.5,2011.3,1.4242]
[1743111098480,1.4295,2011.5,2011.4,1.4242]
[1743111098685,2.42396,2011.5,2011.4,1.4242]
[1743111100788,3.2078,2012.2,2011.4,3.9242]
[1743111100989,3.2078,2012.2,2011.9,3.2078]
[1743111100990,0.99421,2012.0,2011.9,3.2078]
[1743111101282,3.71597,2012.1,2011.9,3.2078]
[1743111101482,3.71597,2012.1,2012.0,1.3874]
[1743111101686,3.71596,2012.1,2012.0,1.3874]
[1743111102284,2.7218,2012.1,2012.0,1.3874]
[1743111102482,2.7218,2012.1,2012.0,2.38161]
[1743111102689,2.7218,2012.1,2012.0,1.3874]
[1743111102690,3.71596,2012.1,2012.0,1.3874]
[1743111102884,0.99421,2012.0,2011.9,3.2078]
[1743111103090,0.99426,2011.9,2011.8,0.00745731]
[1743111104084,0.99426,2011.9,2011.8,1.40945731]
[1743111106690,2.49270731,2012.3,2011.8,4.90375731]
[1743111106991,3.74086,2012.1,2012.0,3.2078]
[1743111109680,0.00745731,2012.3,2012.0,5.7078]
[1743111109881,2.34014,2012.2,2012.1,1.4183]
[1743111111691,2.34014,2012.2,2012.1,4.6261]
[1743111112989,2.34014,2012.2,2012.1,5.62026]
[1743111113189,2.34014,2012.2,2012.1,4.6261]
[1743111114084,2.34014,2012.2,2012.1,5.62026]
[1743111114779,2.34014,2012.2,2012.1,4.6261]
[1743111115693,2.34014,2012.2,2012.1,5.62026]
[1743111116589,0.00745731,2012.3,2012.2,0.99411]
[1743111116890,4.972,2014.1,2012.2,0.99411]
[1743111116891,5.952,2013.5,2012.5,2.48486]
[1743111117194,2.32257,2013.5,2013.4,3.2078]
[1743111117787,1.3291,2013.5,2013.4,3.2078]
[1743111117988,2.32257,2013.5,2013.4,3.2078]
[1743111118195,1.3291,2013.5,2013.4,4.20132]
[1743111118488,2.31004731,2013.7,2013.4,4.20132]
[1743111118489,1.31665731,2013.7,2013.4,5.7078]
[1743111118684,1.31665731,2013.7,2013.5,1.3423]
[1743111118880,2.31005731,2013.7,2013.5,1.3423]
[1743111119090,1.00084731,2013.7,2013.5,1.3423]
[1743111119297,0.00745731,2013.7,2013.5,2.33577]
[1743111119994,0.00745731,2013.7,2013.6,0.99342]
[1743111120197,0.00745731,2013.7,2013.5,2.33574]
[1743111120396,0.00745731,2013.7,2013.5,1.3423]
[1743111120695,2.35524731,2013.7,2013.5,1.3423]
[1743111120889,1.36185731,2013.7,2013.5,1.3423]
[1743111121086,2.35525731,2013.7,2013.5,1.3423]
[1743111121494,1.36185731,2013.7,2013.5,2.33577]
[1743111121697,1.36185731,2013.7,2013.4,3.2078]
[1743111121894,0.99347,2013.5,2013.4,3.2078]
[1743111122495,0.99344,2013.6,2013.4,3.2078]
[1743111122791,0.00745731,2013.7,2013.5,1.4436]
[1743111122994,0.99342,2013.6,2013.5,1.4436]
[1743111123297,0.00745731,2013.7,2013.5,1.4436]
[1743111123500,1.00083731,2013.7,2013.5,1.4436]
[1743111124000,0.00745731,2013.7,2013.5,2.43706]
[1743111124298,0.00745731,2013.7,2013.6,2.30992]
[1743111124799,0.6688,2014.0,2013.7,0.99333]
[1743111125000,0.6688,2014.0,2013.9,3.2078]
[1743111125195,0.6688,2014.0,2013.9,21.9078]
[1743111125402,0.6688,2014.0,2013.9,23.2243]
[1743111127396,0.00745731,2014.2,2013.9,24.21754]
[1743111128898,0.00745731,2014.2,2013.9,23.2243]
[1743111129208,0.00745731,2014.2,2013.9,24.21754]
[1743111130099,0.00745731,2014.2,2014.0,0.9932]
[1743111130295,0.00745731,2014.2,2014.1,1.4047]
[1743111130503,1.00057731,2014.2,2014.1,1.4047]
[1743111130700,0.00745731,2014.2,2014.1,1.4047]
[1743111131499,1.00057731,2014.2,2014.1,1.4047]
[1743111133203,0.00745731,2014.2,2014.1,1.4047]
[1743111133805,1.00057731,2014.2,2014.1,1.4047]
[1743111134608,0.00745731,2014.2,2014.1,2.39787]
[1743111135203,1.00057731,2014.2,2014.1,2.39787]
[1743111135507,0.00745731,2014.2,2014.1,2.39787]
[1743111136006,0.00745731,2014.2,2014.1,4.89787]
[1743111136196,0.00745731,2014.2,2014.1,8.33187]
[1743111136700,0.6793,2014.5,2014.1,8.33187]
[1743111136701,2.48176,2015.1,2014.1,9.82161]
[1743111136894,2.48176,2015.1,2014.4,0.99301]
[1743111136895,0.99298,2014.5,2014.4,0.99301]
[1743111137105,0.99298,2014.5,2014.4,4.20081]
[1743111137300,2.31728,2014.5,2014.4,4.20081]
[1743111137602,0.99288,2014.7,2014.6,0.99291]
[1743111137793,0.99293,2014.6,2014.5,1.3499]
[1743111138201,2.31723,2014.6,2014.5,1.3499]
[1743111138609,2.31723,2014.6,2014.5,2.34288]
[1743111138804,2.31723,2014.6,2014.5,1.3499]
[1743111139010,2.31723,2014.6,2014.5,2.34288]
[1743111139504,0.99298,2014.5,2014.4,3.2078]
[1743111139702,0.99307,2014.3,2014.2,0.00745731]
[1743111140306,1.66817,2014.3,2014.2,0.00745731]
[1743111140501,3.09527,2014.3,2014.2,0.00745731]
[1743111144315,3.09527,2014.3,2014.2,1.35705731]
[1743111150312,3.09527,2014.3,2014.2,2.35017731]
[1743111150817,3.09527,2014.3,2014.2,0.00745731]
[1743111151510,3.09527,2014.3,2014.2,1.33235731]
[1743111152219,3.09527,2014.3,2014.2,2.32547731]
[1743111152608,3.09527,2014.3,2014.2,1.33235731]
[1743111152812,3.09527,2014.3,2014.2,2.32547731]
[1743111154606,3.09527,2014.3,2014.2,1.33235731]
[1743111155011,3.09527,2014.3,2014.2,2.32547731]
[1743111158217,3.00237,2014.4,2014.3,0.99307]
[1743111158419,0.99307,2014.4,2014.3,2.34207]
[1743111158717,1.3149,2014.4,2014.3,2.34207]
[1743111159021,2.30793,2014.4,2014.3,2.34207]
[1743111160616,1.3149,2014.4,2014.3,2.34207]
[1743111162019,1.68809,2014.5,2014.4,0.99303]
[1743111162221,3.02739,2014.5,2014.4,5.60453]
[1743111162520,2.0344,2014.5,2014.4,5.60453]
[1743111163315,1.3393,2014.5,2014.4,5.60453]
[1743111163519,1.66997,2014.6,2014.5,0.99298]
[1743111163813,2.99447,2014.6,2014.5,2.38838]
[1743111164721,2.31747,2014.6,2014.5,2.38838]
[1743111164922,1.3245,2014.6,2014.5,2.38838]
[1743111165119,2.31743,2014.6,2014.5,2.38838]
[1743111166825,2.31743,2014.6,2014.5,5.59618]
[1743111167826,1.3245,2014.6,2014.5,5.59618]
[1743111168025,2.31743,2014.6,2014.5,5.59618]
[1743111168527,1.3245,2014.6,2014.5,5.59618]
[1743111168728,2.31743,2014.6,2014.5,5.59618]
[1743111171020,1.3245,2014.6,2014.5,8.94518]
[1743111171329,2.31743,2014.6,2014.5,8.94518]
[1743111174228,1.3245,2014.6,2014.5,8.94518]
[1743111181937,2.31743,2014.6,2014.5,8.94518]
[1743111182535,1.3245,2014.6,2014.5,8.94518]
[1743111184342,2.31743,2014.6,2014.5,8.94518]
[1743111184541,1.3245,2014.6,2014.5,8.94518]
[1743111184742,2.31743,2014.6,2014.5,8.94518]
[1743111185143,1.3245,2014.6,2014.5,8.94518]
[1743111186238,2.31743,2014.6,2014.5,8.94518]
[1743111187744,1.3245,2014.6,2014.5,8.94518]
[1743111189245,2.31743,2014.6,2014.5,8.94518]
[1743111189842,1.3245,2014.6,2014.5,8.94518]
[1743111190244,1.3245,2014.6,2014.5,5.73738]
[1743111190443,1.3245,2014.6,2014.5,8.94518]
[1743111190742,2.31743,2014.6,2014.5,8.94518]
[1743111191746,1.3245,2014.6,2014.5,8.94518]
[1743111192045,2.31743,2014.6,2014.5,8.94518]
[1743111192649,1.3245,2014.6,2014.5,8.94518]
[1743111192846,2.31743,2014.6,2014.5,8.94518]
[1743111193043,0.99278,2015.0,2014.5,10.4522]
[1743111193245,2.41528,2015.0,2014.9,4.20051]
[1743111193746,2.41528,2015.0,2014.9,22.90051]
[1743111194444,2.41528,2015.0,2014.9,24.90914605]
[1743111195034,1.4225,2015.0,2014.9,24.90914605]
[1743111195548,0.99261,2015.3,2015.0,0.99273]
[1743111195744,1.66361,2015.3,2015.2,4.20043]
[1743111196134,1.66361,2015.3,2015.2,5.51933]
[1743111197139,0.671,2015.3,2015.2,5.51933]
[1743111197350,1.66358,2015.3,2015.2,5.51933]
[1743111199155,0.671,2015.3,2015.2,5.51933]
[1743111199348,3.09678,2015.3,2015.2,5.51933]
[1743111199651,1.69068,2015.4,2015.3,0.99258]
[1743111199857,3.81208,2015.4,2015.3,2.32228]
[1743111202053,2.8195,2015.4,2015.3,2.32228]
[1743111202253,3.81203,2015.4,2015.3,2.32228]
[1743111209354,2.8195,2015.4,2015.3,2.32228]
[1743111209961,0.9925,2015.5,2015.4,0.99253]
[1743111210161,3.78116,2015.6,2015.5,0.99248]
[1743111210359,3.78116,2015.6,2015.5,5.58658]
[1743111211165,0.99246,2015.6,2015.5,5.58658]
[1743111211369,1.3696,2020.4,2015.5,29.75881372]
[1743111211665,79.20878675,2022.6,2015.5,29.75881372]
[1743111211666,26.04531,2020.6,2018.9,16.4598]
[1743111211862,4.95759232,2020.7,2020.5,3.2078]
[1743111212264,1.389,2020.6,2020.4,0.00743808]
[1743111212470,0.99003,2020.5,2020.4,0.00743808]
[1743111212873,0.99013,2020.3,2020.2,1.45800768]
[1743111213059,0.99013,2020.3,2019.6,2.41933387]
[1743111213060,4.95132,2020.1,2019.9,3.2078]
[1743111213263,3.2078,2020.8,2019.9,3.2078]
[1743111213460,3.2078,2021.5,2020.5,3.2078]
[1743111213669,1.3487,2021.6,2020.0,4.9720985]
[1743111213670,6.34609398,2020.7,2020.0,4.9720985]
[1743111213860,0.99016,2020.3,2020.0,4.9720985]
[1743111214167,2.37917,2020.2,2020.1,2.01977362]
[1743111214369,0.99022,2020.1,2020.0,3.05797362]
[1743111214576,0.99033,2019.9,2019.6,3.2078]
[1743111215073,41.79038,2019.8,2019.6,3.2078]
[1743111215265,41.79038,2019.8,2019.0,3.95925804]
[1743111215266,40.8,2019.8,2019.0,3.95925804]
[1743111215460,3.2078,2019.2,2018.3,4.95549]
[1743111215658,3.2078,2018.9,2017.7,9.1588]
[1743111215862,4.228,2019.3,2017.3,0.74861371]
[1743111215863,3.2078,2018.1,2018.0,8.55282144]
[1743111216072,4.245,2018.8,2018.0,8.55282144]
[1743111216073,3.2078,2018.4,2018.3,0.99111]
[1743111216288,3.2078,2018.7,2018.6,0.99096]
[1743111216471,36.1078,2018.7,2018.6,0.99096]
[1743111217180,3.2078,2018.7,2018.6,0.99096]
[1743111217574,36.1078,2018.7,2018.6,0.99096]
[1743111218178,3.2078,2018.7,2018.6,0.99096]
[1743111220766,4.19871,2018.7,2018.6,0.99096]
[1743111220973,0.99096,2018.6,2018.5,1.4174]
[1743111221371,0.99101,2018.5,2018.4,0.99102]
[1743111221574,3.2078,2018.7,2018.2,1.4443]
[1743111221766,0.99116,2018.2,2018.1,0.00743808]
[1743111221970,4.19896,2018.2,2018.1,0.00743808]
[1743111222170,4.21554962,2018.2,2018.1,0.00743808]
[1743111222378,3.8665,2018.6,2018.2,2.47786]
[1743111222673,3.2078,2018.3,2018.2,0.99112]
[1743111223069,0.99116,2018.2,2018.1,0.99860808]
[1743111223464,0.99116,2018.2,2018.1,0.00743808]
[1743111223674,0.99116,2018.2,2018.1,0.99863808]
[1743111223875,0.99116,2018.2,2018.1,0.00743808]
[1743111224080,1.02726069,2018.2,2018.1,0.99863808]
[1743111224381,1.04214974,2018.2,2018.1,0.99863808]
[1743111224576,1.04214974,2018.2,2018.1,2.21484101]
[1743111225877,0.05098974,2018.2,2018.1,2.21484101]
[1743111226078,1.04214974,2018.2,2018.1,2.21484101]
[1743111226274,1.04214974,2018.2,2018.1,3.73545151]
[1743111226477,0.05098974,2018.2,2018.1,3.73545151]
[1743111226676,1.04214974,2018.2,2018.1,3.73545151]
[1743111226875,1.04214974,2018.2,2018.1,4.49596827]
[1743111227376,0.05098974,2018.2,2018.1,4.49596827]
[1743111227583,1.04214974,2018.2,2018.1,4.49596827]
[1743111228783,0.05098974,2018.2,2018.1,4.49596827]
[1743111229583,1.04214974,2018.2,2018.1,4.49596827]
[1743111229781,2.47754,2018.5,2018.2,0.99112]
[1743111229993,3.2078,2018.3,2018.2,0.99112]
[1743111230284,4.19896,2018.3,2018.2,0.99112]
[1743111230586,0.99116,2018.3,2018.2,0.99112]
[1743111231085,0.99116,2018.3,2018.2,3.50476191]
[1743111231283,0.99116,2018.3,2018.2,4.49592191]
[1743111234795,0.99116,2018.3,2018.2,5.24074035]
[1743111235186,0.99116,2018.3,2018.2,5.76956124]
[1743111235588,0.99116,2018.3,2018.2,5.0247428]
[1743111236183,0.99116,2018.3,2018.2,4.0335828]
[1743111236389,0.99116,2018.3,2018.2,5.0247428]
[1743111236793,0.99116,2018.3,2018.2,4.0335828]
[1743111237092,0.99116,2018.3,2018.2,4.7591488]
[1743111237992,0.99116,2018.3,2018.2,5.7503088]
[1743111238192,0.99116,2018.3,2018.2,6.60034992]
[1743111238394,0.99116,2018.3,2018.2,2.10730023]
[1743111238587,0.99116,2018.3,2018.2,5.55085669]
[1743111239181,4.19896,2018.3,2018.2,6.71822098]
[1743111239788,3.2078,2018.8,2018.4,2.47764]
[1743111239992,3.2078,2018.8,2018.7,0.99091]
[1743111240294,0.00743808,2019.0,2018.9,0.99081]
[1743111240494,0.00743808,2019.0,2018.9,5.73882807]
[1743111240797,0.00743808,2019.0,2018.9,9.18238453]
[1743111241094,0.00743808,2019.0,2018.9,9.78812086]
[1743111241290,0.00743808,2019.0,2018.9,4.43436646]
[1743111241503,0.00743808,2019.0,2018.9,11.14606861]
[1743111241996,0.99076,2019.0,2018.9,11.14606861]
[1743111242987,7.54376,2019.0,2018.9,2.77929174]
[1743111243187,7.2167,2019.0,2018.3,0.60925138]
[1743111243394,3.2078,2018.4,2018.1,0.61668946]
[1743111243593,0.99111,2018.3,2018.2,1.47017033]
[1743111243995,0.99116,2018.2,2018.1,0.99862808]
[1743111244195,7.2688,2018.4,2018.2,0.99115]
[1743111244386,7.2688,2018.4,2018.2,1.3946]
[1743111244387,0.99114,2018.3,2018.2,1.3946]
[1743111247301,0.99114,2018.3,2018.2,2.38576]
[1743111247499,0.99114,2018.3,2018.2,1.3946]
[1743111250008,4.19889,2018.4,2018.2,1.3946]
[1743111250198,4.19889,2018.4,2018.3,0.99111]
[1743111250399,0.99097,2018.6,2018.5,0.99097]
[1743111250899,0.99101,2018.5,2018.4,1.3853]
[1743111251099,0.99101,2018.5,2018.4,2.37633]
[1743111251711,4.19881,2018.5,2018.4,1.3853]
[1743111252007,0.99116,2018.2,2018.1,0.00743808]
[1743111252308,4.19896,2018.2,2018.1,0.00743808]
[1743111252702,5.59826,2018.2,2018.1,0.00743808]
[1743111253412,8.09826,2018.2,2018.1,0.00743808]
[1743111254097,0.99135,2017.8,2017.7,1.4166]
[1743111254303,4.19915,2017.8,2017.7,1.4166]
[1743111255212,4.19915,2017.8,2017.7,1.91344734]
[1743111255803,4.19915,2017.8,2017.7,0.49684734]
[1743111256301,0.99145,2017.6,2017.5,1.42393808]
[1743111256500,0.99145,2017.6,2017.5,2.91215449]
[1743111256710,0.99145,2017.6,2017.5,1.92062918]
[1743111257010,0.99145,2017.6,2017.5,2.91212918]
[1743111257308,0.99145,2017.6,2017.5,1.92062918]
[1743111257508,0.99145,2017.6,2017.5,2.91212918]
[1743111258005,0.99145,2017.6,2017.5,1.92062918]
[1743111258209,0.99145,2017.6,2017.5,0.50412918]
[1743111258406,0.99145,2017.6,2017.5,0.50412923]
[1743111259405,3.49145,2017.6,2017.5,0.00743808]
[1743111261413,3.49145,2017.6,2017.5,8.08e-06]
[1743111262614,4.93945,2017.6,2017.5,8.08e-06]
[1743111263209,4.93545,2017.6,2017.5,8.08e-06]
[1743111263908,4.93545,2017.6,2017.5,1.38160808]
[1743111267524,6.37105,2017.6,2017.5,1.38160808]
[1743111268022,6.33905,2017.6,2017.5,8.08e-06]
[1743111268522,8.83905,2017.6,2017.5,8.08e-06]
[1743111269425,9.51125,2017.6,2017.5,8.08e-06]
[1743111275930,12.71905,2017.6,2017.5,8.08e-06]
[1743111278632,10.21905,2017.6,2017.5,8.08e-06]
[1743111279029,12.71905,2017.6,2017.5,8.08e-06]
[1743111280034,8.80705,2017.6,2017.5,8.08e-06]
[1743111280232,12.64105,2017.6,2017.5,8.08e-06]
[1743111282636,11.96885,2017.6,2017.5,8.08e-06]
[1743111285733,11.93585,2017.6,2017.5,8.08e-06]
[1743111289344,17.1733135,2017.6,2017.5,8.08e-06]
[1743111290736,50.0733135,2017.6,2017.5,8.08e-06]
[1743111290936,50.0733135,2017.6,2016.8,1.3614]
[1743111290937,0.99179,2016.9,2016.8,1.3614]
[1743111291140,7.97959,2016.9,2016.8,1.3614]
[1743111293750,10.47959,2016.9,2016.8,1.3614]
[1743111294153,11.91019,2016.9,2016.8,1.3614]
[1743111295755,0.99189,2016.7,2016.6,0.00743808]
[1743111297154,3.49189,2016.7,2016.6,0.00743808]
[1743111297350,3.49189,2016.7,2016.6,8.08e-06]
[1743111298361,13.18889,2016.7,2016.6,8.08e-06]
[1743111298561,14.53089,2016.7,2016.6,8.08e-06]
[1743111301855,10.78589,2016.7,2016.6,8.08e-06]
[1743111302159,10.67389,2016.7,2016.6,8.08e-06]
[1743111303057,4.72189,2016.7,2016.6,8.08e-06]
[1743111304356,4.71189,2016.7,2016.6,8.08e-06]
[1743111309469,7.91969,2016.7,2016.6,8.08e-06]
[1743111317172,4.71189,2016.7,2016.6,8.08e-06]
[1743111317370,7.91969,2016.7,2016.6,8.08e-06]
[1743111329783,10.41969,2016.7,2015.2,4.96302]
[1743111329972,10.41969,2016.7,2015.0,0.3178858]
[1743111329973,3.2078,2016.1,2015.7,2.62825991]
[1743111330172,0.99229,2015.9,2015.8,0.49975991]
[1743111330374,4.20009,2015.9,2015.8,0.49975991]
[1743111330569,3.2078,2015.9,2015.8,0.49975991]
[1743111330774,4.20009,2015.9,2015.8,0.49975991]
[1743111331480,0.99234,2015.8,2015.7,2.1285]
[1743111331875,0.99234,2015.8,2015.7,2.62822639]
[1743111333680,0.99234,2015.8,2015.7,2.62775223]
[1743111337491,0.99234,2015.8,2015.7,0.49925223]
[1743111337785,0.99238,2015.7,2015.6,0.00743808]
[1743111339089,2.33068,2015.7,2015.6,0.00743808]
[1743111341581,2.66072705,2015.7,2015.6,0.00743808]
[1743111344395,2.33068,2015.7,2015.6,0.00743808]
[1743111345596,2.66474222,2015.7,2015.6,0.00743808]
[1743111346093,2.66474222,2015.7,2015.6,8.08e-06]
[1743111346796,11.11674222,2015.7,2015.6,8.08e-06]
[1743111346991,16.47303167,2015.7,2015.6,8.08e-06]